Cogmind - Beta 10.1 @@@ ROGUE MODE // 2020.10.12 @ 21:34:33 Player: derk Result: Self-destructed Performance ------------- Evolutions (7) 3500 Regions Visited (25) 5000 Robots Destroyed (518) 2590 Value Destroyed (27527) 27527 Prototype IDs (42) 840 Alien Tech Used (0) 0 Bonus (7874) 7874 TOTAL SCORE: 47331 Bonus ------- High Alert Combat Kills 3686 Follower Combat Kills 3311 Entered Garrisons 1400 Used RIF Installer 3500 Network Hubs Disabled 400 Built Enhanced Grunts 300 Friendly Fire -4723 Cogmind --------- Core Integrity 49/1300 Matter 240/300 Energy 85/100 System Corruption 24% Temperature Cool (0) Movement Core (50) Location -3/Research Parts ------- > --- POWER (2) -------- (None) > --- PROPULSION (5) --- (None) > --- UTILITY (12) ----- Improved Targeting Computer Advanced Target Analyzer Advanced Core Analyzer Improved Utility Shielding Improved System Shield Relay Coupler [NC] (5) Relay Coupler [NC] (35) Relay Coupler [NC] (32) Relay Coupler [NC] (31) > --- WEAPON (2) ------- (None) > --- INVENTORY (4) ---- Improved Energy Well (0) Compact HERF Cannon Gamma Bomb Array Advanced Remote Datajack Peak State ------------ > --- POWER ------------ Compact Particle Reactor Quantum Reactor > --- PROPULSION ------- Armored Medium Treads Centrium Heavy Treads Centrium Heavy Treads > --- UTILITY ---------- Advanced Heat Sink Large Storage Unit Large Storage Unit High-capacity Storage Unit Damper Plating EM Dispersion Field > --- WEAPON ----------- Advanced Variable Charge Gun Improved KE Penetrator > --- INVENTORY -------- Micro Fission Core Centrium Heavy Treads Combat Airjet Combat Airjet Cooled Gravmag System Cooled Gravmag System Cooled Gravmag System Combat Antigrav System Improved Energy Well Matter Compressor Advanced Weight Redist. System Centrium Medium Armor Plating Centrium Medium Armor Plating Advanced Shield Generator Improved Hacking Suite Improved Hacking Suite Advanced System Shield Heavy Phase Cannon Neutron Cannon Improved KE Penetrator Improved Proton Missile Launcher Improved Remote Datajack Phasing Sabre [Rating: 126] Favorites ----------- Power Micro Fission Core Engine Reinforced Deuterium Engine Power Core Micro Fission Core Reactor Antimatter Reactor Propulsion Armored Wheel Treads Improved Treads Leg Carbon-fiber Leg Wheel Armored Wheel Hover Unit Combat Airjet Utility Large Storage Unit Device Improved Cooling System Storage Large Storage Unit Processor Improved Melee Analysis Suite Hackware Relay Coupler [NC] Protection Centrium Medium Armor Plating Weapon Heavy Pick Energy Gun Lightning Gun Energy Cannon Heavy Plasma Cannon Ballistic Gun Heavy Assault Rifle Ballistic Cannon Enhanced Gauss Cannon Launcher Missile Launcher Special Weapon Remote Datajack Impact Weapon Makeshift Hammer Slashing Weapon Phasing Sabre Piercing Weapon Heavy Pick Special Melee Weapon Improved Datajack Build | -11 -10 -9 -9 -8 -8 -8 -7 -7 -7 -7 -6 -6 -6 -6 -5 -5 -5 -5 -5 -5 -4 -4 -4 -4 -3 ------- Run | Scr Mat Mat Min Mat Gar Mat Fac Gar Fac Gar Fac Was Fac Gar Fac Ext Cet Arc Hub Gar Fac Gar Fac Gar Res Slots Evolved 14 | . . 2 . 2 . . 2 . . . 2 . . . 2 . . . . . 2 . . . 2 Power 1 | . . . . . . . . . . . 1 . . . . . . . . . . . . . . Propulsion 3 | . . . . 1 . . 2 . . . . . . . . . . . . . . . . . . Utility 10 | . . 2 . 1 . . . . . . 1 . . . 2 . . . . . 2 . . . 2 Weapon . | . . . . . . . . . . . . . . . . . . . . . . . . . . Parts Attached 759 | 7 10 14 7 18 31 33 65 38 45 25 24 10 27 49 57 27 21 12 20 37 22 24 35 41 60 Power 82 | 1 1 1 1 1 1 4 5 3 2 1 3 3 3 9 6 3 3 . 1 4 2 3 6 3 12 Engine 27 | 1 1 1 1 1 1 3 3 3 1 1 1 . . 8 . . . . . . . . . . 1 Core 35 | . . . . . . 1 2 . 1 . 2 . 2 1 6 3 1 . 1 4 2 3 2 1 3 Reactor 20 | . . . . . . . . . . . . 3 1 . . . 2 . . . . . 4 2 8 Propulsion 171 | 2 4 4 1 2 10 13 16 8 17 9 12 3 3 10 11 1 2 1 2 6 2 1 9 10 12 Treads 78 | . 4 4 1 2 5 11 5 3 9 4 3 3 2 1 10 1 2 1 1 1 . . 1 2 2 Leg 15 | . . . . . 4 2 . . . . . . 1 5 . . . . . . . . . 1 2 Wheel 25 | 2 . . . . . . 3 5 2 5 4 . . 2 1 . . . . . . . 1 . . Hover 53 | . . . . . 1 . 8 . 6 . 5 . . 2 . . . . 1 5 2 1 7 7 8 Flight . | . . . . . . . . . . . . . . . . . . . . . . . . . . Utility 250 | 2 2 5 2 6 8 7 21 13 12 10 5 3 9 21 22 7 7 6 9 16 8 7 6 16 20 Device 85 | . . . . . 2 3 11 1 4 1 . 1 2 7 10 4 2 1 7 8 3 3 4 7 4 Storage 27 | 2 2 2 . 3 2 2 2 3 1 1 . . . 2 . . 1 . . 2 1 1 . . . Processor 19 | . . . 1 2 2 . 1 . . 1 . 1 1 . 3 . . . 1 . 1 1 . 2 2 Hackware 52 | . . . . . . . 2 5 3 2 3 1 2 6 5 2 . 1 1 4 2 2 1 6 4 Protection 67 | . . 3 1 1 2 2 5 4 4 5 2 . 4 6 4 1 4 4 . 2 1 . 1 1 10 Artifact . | . . . . . . . . . . . . . . . . . . . . . . . . . . Weapon 256 | 2 3 4 3 9 12 9 23 14 14 5 4 1 12 9 18 16 9 5 8 11 10 13 14 12 16 Energy Gun 30 | . . . . . 1 1 6 6 1 . . . . 1 . . 1 . 2 1 1 . . 5 4 Energy Cannon 71 | . . . . . 1 5 . 1 5 3 1 1 5 3 6 5 . 2 1 3 4 5 8 3 9 Ballistic Gun 30 | 2 3 4 1 5 . 2 . . 2 . . . . . . 3 4 2 1 1 . . . . . Ballistic Cannon 3 | . . . . . . . . . . . . . . . 2 . . . . . 1 . . . . Launcher 25 | . . . 1 1 4 . 2 3 . 2 . . 1 1 1 3 2 . 1 2 . . . . 1 Special Weapon 44 | . . . . . . . 2 1 3 . 2 . 4 3 7 2 1 . 1 2 4 4 3 3 2 Impact Weapon 6 | . . . 1 2 1 . 2 . . . . . . . . . . . . . . . . . . Slashing Weapon 19 | . . . . 1 1 . 2 . . . . . . . . 2 1 . 2 2 . 4 3 1 . Piercing Weapon 26 | . . . . . 4 1 8 3 3 . 1 . 2 1 2 1 . . . . . . . . . Special Melee Weapon 2 | . . . . . . . 1 . . . . . . . . . . 1 . . . . . . . Unidentified Prototypes 26 | . . 1 . . 2 2 1 . 1 . . . . . 3 . 4 . 8 . 2 . 1 . 1 Parts Lost 142 | . . . 4 7 7 5 13 5 6 3 1 1 6 13 1 4 1 . 3 7 1 1 10 10 33 Power 23 | . . . 1 1 . 1 1 1 2 . . . 2 3 . . . . 1 2 . . 2 . 6 Propulsion 43 | . . . 1 1 3 2 8 1 2 1 . . 3 3 . . . . . 2 . . 2 3 11 Utility 40 | . . . 2 2 1 1 4 1 2 2 . . . 2 1 2 . . 1 2 1 1 3 3 9 Weapon 36 | . . . . 3 3 1 . 2 . . 1 1 1 5 . 2 1 . 1 1 . . 3 4 7 Highest Loss Streak 21 | . . . 2 5 7 2 9 2 2 1 1 1 2 3 1 2 1 . 1 2 1 1 8 4 21 Average Slot Usage (%) 92 | . 100 99 99 99 99 99 93 99 98 98 94 87 83 86 93 88 88 84 75 89 99 99 93 82 85 Engine 3 | . 14 11 10 8 9 8 4 6 6 5 5 . . 7 1 . . . . . . . . . . Core 4 | . . . . . . . 2 . . 1 7 7 5 . 9 11 5 . . 9 10 10 4 4 4 Reactor 1 | . . . . . . . . . . . . 4 6 2 . . 4 11 10 . . . 5 5 3 Treads 14 | . 23 21 21 26 14 20 8 21 11 22 19 19 17 9 11 23 18 17 17 14 . . . 2 . Leg 1 | . . . . . 11 5 . . . . . . . 6 4 . . . . . . . . 2 1 Wheel 3 | . 4 . . . . . 6 15 7 15 12 2 . 1 6 . . . . . . . . . . Hover 5 | . . . . . . . 18 1 18 . . . . 4 . . . . . 4 26 25 24 14 14 Device 7 | . . . . . 3 7 10 7 5 5 4 5 5 6 10 9 5 11 6 11 11 8 14 14 11 Storage 18 | . 28 22 22 26 21 27 13 19 23 17 20 20 20 20 17 17 22 17 17 12 10 12 15 11 8 Processor 3 | . . . 7 8 13 8 2 . . . . 5 1 . 2 . . . . 5 6 6 3 3 7 Hackware 4 | . . . . . . . 1 4 3 1 5 6 6 8 8 6 5 2 2 4 16 14 9 7 13 Protection 6 | . . 22 14 10 6 1 7 5 4 12 5 . 4 3 4 5 11 10 5 9 5 7 4 4 8 Energy Cannon 3 | . . . . . . 8 . 1 5 10 5 6 4 3 4 4 1 4 3 1 1 5 4 4 5 Ballistic Gun 3 | . 28 22 19 2 . 6 . . . . . . . . . 2 4 4 2 5 . . . . . Special Weapon 1 | . . . . . . . . 3 3 1 2 6 2 . 1 . 1 . . . 3 1 1 2 1 Piercing Weapon 2 | . . . . . 9 2 8 2 4 . 2 . 4 5 3 . . . . . . . . . . Naked Turns . | . . . . . . . . . . . . . . . . . . . . . . . . . . Heaviest Build 163 | 16 41 56 56 79 74 82 82 84 100 95 105 101 115 115 124 131 127 163 163 137 87 102 119 120 110 Greatest Support 196 | 20 46 46 46 69 69 73 64 40 70 76 24 160 160 140 147 147 183 187 187 196 108 108 108 150 90 Greatest Overweight (x) 9 | . 2 2 1 1 4 3 4 4 4 4 4 4 . 7 4 . 1 . 1 . . 1 1 3 9 Average Overweight (x) . | . . 1 . . . 1 1 2 1 1 3 . . 1 1 . . . . . . . . . . Largest Inventory Capacity 30 | 8 16 16 16 28 22 22 22 22 24 24 24 24 24 30 24 24 24 24 24 24 18 18 18 18 10 Average Capacity 19 | 5 15 16 16 21 18 22 14 18 22 19 24 24 24 24 24 24 24 24 24 18 18 18 18 11 9 Most Carried 25 | 8 16 16 16 22 22 22 21 22 24 24 24 24 24 25 24 24 24 24 24 24 18 18 18 18 10 Average Carried 19 | 4 14 15 15 17 16 21 13 18 22 19 23 23 23 23 23 23 23 23 23 18 16 17 14 10 9 Final Capacity 24 | 8 16 16 16 22 22 22 14 22 24 24 24 24 24 24 24 24 24 24 24 18 18 18 18 10 4 Final Carried 24 | 8 16 16 16 22 22 21 14 22 22 24 24 24 23 24 24 23 24 24 24 18 18 18 14 10 4 Class Distribution -------------------- 39% | Scavenger-Mutant 28% | Bothacker-Mutant 16% | Mutant 7% | Hauler-Mutant 6% | Botlord-Mutant Dominant Class ---------------- Mutant | -10/Materials Mutant | -9/Materials Mutant | -9/Mines Hauler-Mutant | -8/Materials Hauler-Mutant | -8/Garrison Hauler-Mutant | -8/Materials Mutant | -7/Factory Scavenger-Mutant | -7/Garrison Bothacker-Mutant | -7/Factory Bothacker-Mutant | -7/Garrison Bothacker-Mutant | -6/Factory Bothacker-Mutant | -6/Waste Bothacker-Mutant | -6/Factory Scavenger-Mutant | -6/Garrison Bothacker-Mutant | -5/Factory Scavenger-Mutant | -5/Extension Scavenger-Mutant | -5/Cetus Scavenger-Mutant | -5/Archives Scavenger-Mutant | -5/Hub_04(d) Scavenger-Mutant | -5/Garrison Botlord-Mutant | -4/Factory Botlord-Mutant | -4/Garrison Botlord-Mutant | -4/Factory Scavenger-Mutant | -4/Garrison Scavenger-Mutant | -3/Research Resources | -11 -10 -9 -9 -8 -8 -8 -7 -7 -7 -7 -6 -6 -6 -6 -5 -5 -5 -5 -5 -5 -4 -4 -4 -4 -3 ----------- Run | Scr Mat Mat Min Mat Gar Mat Fac Gar Fac Gar Fac Was Fac Gar Fac Ext Cet Arc Hub Gar Fac Gar Fac Gar Res Matter Collected 13156 | 231 267 599 311 218 460 790 625 784 560 735 254 186 334 909 863 582 280 256 530 936 527 267 554 520 578 Remotely 10 | . . . . . . . . . . . . . . . 10 . . . . . . . . . . Salvage Created 26928 | 74 267 849 329 359 428 1653 796 1623 1718 1455 237 1287 889 1092 2636 1287 687 398 1507 1889 730 1190 863 1447 1238 Parts 1185 | 3 17 62 20 26 34 96 49 61 91 52 10 20 42 44 133 52 30 19 82 55 26 36 29 40 56 Haulers Intercepted 11 | . 2 3 . 1 . 1 . . 1 . . . . . . . . . . . 3 . . . . Recyclers Shooed 5 | . . . . . . . . . . . . . . . 3 1 . . . . . . 1 . . Parts Field Recycled . | . . . . . . . . . . . . . . . . . . . . . . . . . . Retrieved Matter . | . . . . . . . . . . . . . . . . . . . . . . . . . . Parts Self-Destructed . | . . . . . . . . . . . . . . . . . . . . . . . . . . Prevented . | . . . . . . . . . . . . . . . . . . . . . . . . . . Kills | -11 -10 -9 -9 -8 -8 -8 -7 -7 -7 -7 -6 -6 -6 -6 -5 -5 -5 -5 -5 -5 -4 -4 -4 -4 -3 ------- Run | Scr Mat Mat Min Mat Gar Mat Fac Gar Fac Gar Fac Was Fac Gar Fac Ext Cet Arc Hub Gar Fac Gar Fac Gar Res Combat Hostiles Destroyed 400 | . 5 21 10 9 15 30 18 26 22 23 1 5 16 17 35 16 11 2 17 23 9 18 10 24 17 Melee 65 | . . 1 1 1 5 . 16 2 10 . . . 6 4 6 2 . . 4 2 . 1 1 3 . Guns 100 | . 5 20 4 3 . 7 . 9 2 . . . . 2 . 3 2 2 11 17 5 . . 5 3 Cannons 141 | . . . . . . 21 . 2 7 17 . 5 5 6 25 7 1 . 2 3 3 13 5 9 10 AOE 64 | . . . 5 5 10 . 2 12 1 5 . . 3 5 3 4 7 . . 1 1 . . . . Classes Destroyed 19 | 1 5 3 . 3 1 2 1 . . . . 1 . . . . . . 1 1 . . . . . Worker 37 | . 1 1 1 1 . 4 3 . 5 . 1 . 1 . 9 . . . 3 . 6 . . . 1 Builder 12 | . . . . 2 . 1 . . 2 . . . . . 1 1 . . 4 . 1 . . . . Tunneler 4 | . 1 . 1 . . . 1 . . . . . 1 . . . . . . . . . . . . Hauler 11 | . 2 3 . 1 . 1 . . 1 . . . . . . . . . . . 3 . . . . Recycler 15 | 1 . . . . . . . . 3 . 1 . . . 5 2 . . 1 . 1 . 1 . . Mechanic 2 | . . . . . . 1 . . 1 . . . . . . . . . . . . . . . . Operator 13 | . . . . . . 1 . . . . . . . . . 1 1 8 1 . . . . . 1 Watcher 19 | . . 2 . . . 3 1 . . 1 1 . 1 1 3 1 1 . 1 1 1 . . 1 . Swarmer 89 | . 3 9 3 . 7 5 8 3 . 5 . . . 2 10 4 5 . . 9 5 4 . 7 . Grunt 139 | . 2 8 7 2 5 14 4 19 7 13 . . 7 8 4 3 3 . 2 8 . . 3 13 7 Brawler 17 | . . 1 . 2 . 1 1 2 2 2 1 . . . 2 1 1 . 1 . . . . . . Duelist 15 | . . . . 3 1 1 . 1 1 2 . . . 1 . 1 . . 1 1 . 2 . . . Protector 2 | . . . . . . . . . . . . . . . . . . . 2 . . . . . . Sentry 63 | . . 3 . 1 1 7 2 2 5 1 . . 3 4 7 5 . 2 1 3 . 8 4 3 1 Specialist 1 | . . . . . . . . . . . . . . . . . . . . 1 . . . . . Hunter 31 | . . . . 1 . 2 1 . 2 . . . 4 2 5 1 . . 2 1 2 2 2 . 4 Programmer 28 | . . . . . . . 2 . 5 . . . 2 . 7 . . . 2 . 2 2 1 . 5 Behemoth 4 | . . . . . 1 . . . . . . . . . . 1 . . . 1 . . . 1 . Compactor 5 | . . . . . . . . . . . . 5 . . . . . . . . . . . . . Cetus Guard 2 | . . . . . . . . . . . . . . . . . 2 . . . . . . . . Lightning 6 | . . . . . . . . . . . . . . . . . . . 6 . . . . . . Thug 1 | . . . . . . . . . . . . . . . . 1 . . . . . . . . . Butcher 1 | . . . . . . . . . . . . . . . . . 1 . . . . . . . . Best Kill Streak 16 | 1 4 7 3 9 4 8 4 6 7 6 3 2 3 5 7 3 9 2 5 3 16 3 3 5 3 Combat Bots Only 9 | . 3 7 3 5 4 6 4 6 4 6 1 2 3 5 5 3 9 2 4 3 5 3 3 5 3 Max Kills in Single Turn 13 | 1 1 1 3 3 3 1 3 2 2 2 1 1 1 3 3 2 5 1 3 1 13 1 1 1 1 Gunslinging 1 | . . . 1 . . . . . . . . . . . . . . . 1 . . . . . . Exploded 3 | . . . 3 1 3 . 2 2 1 2 . . 1 3 1 2 3 . . 1 1 . . . . Melee 1 | . . 1 1 1 1 . 1 1 1 . . . 1 1 1 1 . . 1 1 . 1 1 1 . Uniques/NPCs Destroyed 1 | . . . . . . . . . . . . . . . . . 1 . . . . . . . . A7 (-5/Cetus) Combat | -11 -10 -9 -9 -8 -8 -8 -7 -7 -7 -7 -6 -6 -6 -6 -5 -5 -5 -5 -5 -5 -4 -4 -4 -4 -3 -------- Run | Scr Mat Mat Min Mat Gar Mat Fac Gar Fac Gar Fac Was Fac Gar Fac Ext Cet Arc Hub Gar Fac Gar Fac Gar Res Damage Taken 37182 | . 375 755 1036 875 1442 1719 1946 1348 1781 1161 287 49 2808 2391 2041 2287 336 21 2254 2051 549 1018 2089 1596 4967 Core 4073 | . 65 70 110 139 170 138 252 104 325 17 . . 241 232 130 158 28 . 119 88 43 71 255 67 1251 Absorbed by Shields 6937 | . . . . . 159 9 55 341 197 4 . . . 123 584 406 181 8 131 1441 62 691 224 1066 1255 Reduced by Siege Mode 117 | . . . . . . . . . . . . . 59 . . . . . 9 35 . . 14 . . Core Remaining (%) 50 | 100 74 . 55 . . 18 . . . . . . . 44 . . . . . 47 . . . 62 . Volleys Fired 1750 | 2 26 79 34 26 15 104 12 86 77 97 21 107 92 68 121 86 13 34 115 115 59 71 72 126 92 Largest 2 | 2 2 2 2 2 1 2 2 2 1 2 1 1 2 1 2 2 2 2 2 2 2 2 1 2 1 Hottest 275 | 40 40 46 46 46 63 138 110 110 80 159 90 90 180 90 147 133 143 133 275 133 178 196 110 180 110 Shots Fired 2184 | 4 53 158 65 40 15 146 15 99 78 109 21 107 93 72 137 105 19 68 151 170 78 84 72 133 92 Gun 851 | 4 53 158 62 29 . 65 10 67 8 . . . . 10 . 20 7 34 109 125 18 . . 61 11 Cannon 974 | . . . . . 7 81 . 4 44 73 7 100 63 37 100 69 6 34 39 32 31 73 45 65 64 Launcher 87 | . . . 3 11 8 . 1 15 . 13 . . 5 7 6 5 4 . 1 8 . . . . . Special 272 | . . . . . . . 4 13 26 23 14 7 25 18 31 11 2 . 2 5 29 11 27 7 17 Kinetic 651 | 4 53 158 62 29 . 65 . . 8 . . . . . 12 20 7 34 79 107 13 . . . . Thermal 799 | . . . . . . 30 . 4 19 50 7 100 63 37 96 59 6 34 69 50 32 34 15 59 35 Explosive 63 | . . . 3 11 8 . 1 15 . 13 . . 5 7 . . . . . . . . . . . Electromagnetic 407 | . . . . . 7 51 10 67 25 23 . . . 10 6 15 4 . 1 8 4 39 30 67 40 Robot Hit Streak 52 | 3 10 11 9 23 10 14 5 11 18 19 9 16 12 24 16 11 11 9 36 27 52 35 24 10 12 Robot Miss Streak 7 | . 7 2 4 3 . 4 2 3 3 3 2 2 3 1 3 5 2 4 2 3 1 1 4 5 7 Penetration Max 1 | . . . . . . . . . 1 . . . . . . 1 . 1 1 1 . . . . . Secondary Targets 11 | . 1 4 2 . . . . . . . . . . . . . . . 3 1 . . . . . Max Gunslinging Chain 1 | . 1 1 1 . . . . . . . . . . . . . . . 1 1 . . . . . Capacitor 143 | . . . . . . . . . . . . . . . . . . . . . . . 31 112 . Shots Hit Robots 1913 | 3 32 115 50 41 26 86 55 89 100 97 19 92 99 84 131 82 25 43 141 154 69 76 57 87 60 Core Hits 873 | 2 13 40 17 23 23 44 30 67 45 47 3 12 38 44 79 38 27 22 62 56 31 23 15 43 29 Critical Hits 79 | . . 3 . . 1 4 2 1 4 1 1 4 6 2 7 3 . 4 13 17 1 . 2 2 1 Critical Kills 36 | . . . . . 1 2 1 . 3 . 1 1 3 . 6 1 . 2 7 5 . . 1 1 1 Critical Parts Destroyed 33 | . . 3 . . . 1 1 1 1 . . . 3 2 1 . . 2 6 9 1 . 1 1 . Melee Attacks 418 | . . . 7 10 28 5 70 23 48 19 4 . 33 38 32 9 10 . 24 32 . 12 3 11 . Impact 15 | . . . 7 5 1 . 2 . . . . . . . . . . . . . . . . . . Slashing 104 | . . . . 5 6 . . . . . . . . . . 1 10 . 24 32 . 12 3 11 . Piercing 291 | . . . . . 21 5 60 23 48 19 4 . 33 38 32 8 . . . . . . . . . Sneak Attacks 63 | . . . . 2 . . 13 . 10 . 2 . 2 3 9 3 9 . 3 1 . 4 2 . . Combat Hostiles 12 | . . . . . . . . . . . . . . 3 . 2 . . . 1 . 4 2 . . Follow-up Attacks 7 | . . . . 2 3 . 2 . . . . . . . . . . . . . . . . . . Damage Inflicted 68977 | 31 383 1441 1166 1377 1378 2952 2150 4229 2994 3875 381 3050 3505 3582 5377 3628 2545 1338 5108 6767 2755 2762 1531 2739 1933 Guns 13027 | 31 383 1414 743 301 . 833 149 1006 223 . . . . 157 . 438 119 619 2428 2482 524 . . 971 206 Cannons 25982 | . . . . . 107 1952 . 81 946 1646 168 3050 1696 791 3131 2276 311 719 1121 792 723 2113 1231 1441 1687 Explosions 12193 | . . . 317 735 694 167 427 1921 68 1116 . . 816 731 745 376 1213 . 526 833 1508 . . . . Melee 17630 | . . . 106 341 577 . 1574 1221 1757 1113 213 . 993 1903 1451 527 902 . 1033 2660 . 649 300 310 . Ramming 95 | . . 27 . . . . . . . . . . . . . 11 . . . . . . . 17 40 Kinetic 9303 | 31 383 1414 743 301 . 833 . . 223 . . . . . 255 438 119 619 1531 2158 255 . . . . Thermal 24699 | . . . . . . 1019 . 310 502 1129 168 3050 1858 791 3184 2233 997 719 2018 1172 2478 923 327 1035 786 Explosive 6295 | . . . 317 735 694 . 427 1692 . 1045 . . 654 731 . . . . . . . . . . . Electromagnetic 10955 | . . . . . 107 1100 149 1006 512 588 . . . 157 487 419 527 . 526 777 22 1190 904 1377 1107 Impact 266 | . . . 106 134 26 . . . . . . . . . . . . . . . . . . . . Slashing 6310 | . . . . 207 101 . . . . . . . . . . 148 902 . 1033 2660 . 649 300 310 . Piercing 11054 | . . . . . 450 . 1574 1221 1757 1113 213 . 993 1903 1451 379 . . . . . . . . . Highest Corruption 24 | . 7 1 1 4 10 15 3 3 9 9 . . 8 8 5 5 . . 4 5 1 1 2 2 24 Average Corruption 4 | . 4 1 1 4 7 10 2 3 3 9 . . 3 8 3 4 . . 2 4 1 1 1 2 7 Corruption Purged 6 | . . . . . . . . . 1 . . . . . . 5 . . . . . . . . . Effects 591 | . 3 6 4 9 34 98 17 23 23 79 . . 21 74 37 49 . . 5 67 . 3 5 18 16 Message Errors 120 | . . 3 2 . 5 14 3 5 5 25 . . 6 15 8 10 . . . 12 . . . 4 3 Matter Fused 124 | . . . . 1 7 16 7 9 8 16 . . 3 21 9 13 . . 1 11 . . . . 2 Heat Flow Errors 58 | . . . . 2 3 5 5 2 5 3 . . 3 7 4 4 . . . 11 . . . 2 2 Energy Discharges 64 | . 1 1 1 2 4 10 2 . 1 4 . . 4 8 4 3 . . 1 11 . . 3 2 2 Parts Rejected 1 | . . . . . . 1 . . . . . . . . . . . . . . . . . . . Data Loss (minor) 64 | . 1 . . 1 4 16 . 3 1 7 . . 1 6 3 3 . . . 8 . 1 2 5 2 Data Loss (major) 20 | . . . . . 2 1 . . . 5 . . 1 5 . 5 . . . 1 . . . . . Misfires 17 | . 1 . . . . 2 . . 1 3 . . . 4 2 1 . . . 3 . . . . . Alerts 1 | . . . . . . . . . . . . . . . . . . . . . . . . . 1 Misdirections 12 | . . . . . 5 7 . . . . . . . . . . . . . . . . . . . Targeting Errors 94 | . . 2 1 3 4 19 . 2 2 13 . . 2 8 6 9 . . 3 9 . 2 . 5 4 Weapon Failures 16 | . . . . . . 7 . 2 . 3 . . 1 . 1 1 . . . 1 . . . . . Overload Shots 2 | . . . . . . . . . . . . . . . . . . . 2 . . . . . . Overflow Damage 2712 | . . . . 53 23 40 190 160 50 64 . . 210 128 287 240 207 36 250 401 161 138 39 13 22 Projectiles 433 | . . . . . . 28 . . 11 11 . . 13 . 21 118 . 36 82 . 52 . 39 . 22 Explosions 607 | . . . . 2 23 12 4 82 . 53 . . 137 27 41 4 76 . 37 . 109 . . . . Melee 1672 | . . . . 51 . . 186 78 39 . . . 60 101 225 118 131 . 131 401 . 138 . 13 . Knockbacks 2 | . . . 1 1 . . . . . . . . . . . . . . . . . . . . . Impact 2 | . . . 1 1 . . . . . . . . . . . . . . . . . . . . . Kinetic . | . . . . . . . . . . . . . . . . . . . . . . . . . . Secondary . | . . . . . . . . . . . . . . . . . . . . . . . . . . Self-Inflicted Damage 971 | . . . 6 80 43 84 . 128 44 201 . . 53 55 . 7 57 . 32 3 . 155 . 8 15 Shots 27 | . . . 1 2 1 2 . 4 1 5 . . 1 1 . 2 2 . 3 1 . 1 . . . Rammed 12 | . . 4 . . . . . . . . . . . . . 1 . . . . . . . 1 6 Targets Rammed 12 | . . 4 . . . . . . . . . . . . . 1 . . . . . . . 1 6 Kicked . | . . . . . . . . . . . . . . . . . . . . . . . . . . Crushed . | . . . . . . . . . . . . . . . . . . . . . . . . . . Highest Temperature 638 | . 2 54 167 243 241 256 251 157 280 191 414 28 287 333 272 319 76 264 638 234 199 196 194 421 524 Average Temperature 92 | . 2 17 82 75 79 69 85 53 107 30 190 18 107 69 52 95 26 79 164 68 92 91 72 110 141 Received Heat Transfer 6362 | . 39 207 561 63 209 346 297 471 321 192 27 . 672 603 156 434 18 . 441 385 9 108 250 218 335 Effects 32 | . . . . . . 3 . . . . 1 . 1 1 . . . 1 10 . . . . 3 12 Shutdowns 10 | . . . . . . . . . . . 1 . . . . . . . 5 . . . . 1 3 Energy Bleed 4 | . . . . . . . . . . . . . . . . . . 1 1 . . . . 1 1 Interference 4 | . . . . . . 3 . . . . . . 1 . . . . . . . . . . . . Matter Decay 2 | . . . . . . . . . . . . . . . . . . . 1 . . . . . 1 Short Circuit 3 | . . . . . . . . . . . . . . 1 . . . . . . . . . 1 1 Damage (minor) 1 | . . . . . . . . . . . . . . . . . . . . . . . . . 1 Damage (major) 8 | . . . . . . . . . . . . . . . . . . . 3 . . . . . 5 Siege Activations 7 | . . . . . . . . . . . . . 2 1 . . . . 2 1 . . 1 . . Total Turns 127 | . . . . . . . . . . . . . 24 11 . . . . 70 11 . . 11 . . Longest Duration 49 | . . . . . . . . . . . . . 14 11 . . . . 49 11 . . 11 . . Robots Corrupted 26 | . . . . . . 2 . 1 2 1 . . . . . . 1 . . . . 4 4 7 4 Combat Hostiles 26 | . . . . . . 2 . 1 2 1 . . . . . . 1 . . . . 4 4 7 4 Parts Fried 78 | . . . . . . 7 1 7 3 4 . . . 3 7 2 . . 6 . . 7 6 21 4 Impact Corruptions . | . . . . . . . . . . . . . . . . . . . . . . . . . . Robots Melted 4 | . . . . . . . . . . . 1 . 2 . 1 . . . . . . . . . . Combat Hostiles 4 | . . . . . . . . . . . 1 . 2 . 1 . . . . . . . . . . Parts Melted 56 | . . . . . . 5 . . 1 2 2 . 9 2 4 2 . 1 1 4 7 2 . 5 9 Heat Transferred 29606 | . . . . . . 1500 . 350 900 1650 250 4650 2650 1200 3811 2303 800 777 1773 1386 2525 1072 284 1250 475 Parts Sabotaged 3 | . . . . . . . . . . . . . . . . . . . . . . . . 3 . Parts Stolen . | . . . . . . . . . . . . . . . . . . . . . . . . . . Parts Stripped . | . . . . . . . . . . . . . . . . . . . . . . . . . . Power Chain Reactions 15 | . . . . . . 3 . 2 1 1 . . . . 1 2 3 . 1 1 . . . . . Missiles Intercepted . | . . . . . . . . . . . . . . . . . . . . . . . . . . Alert | -11 -10 -9 -9 -8 -8 -8 -7 -7 -7 -7 -6 -6 -6 -6 -5 -5 -5 -5 -5 -5 -4 -4 -4 -4 -3 ------- Run | Scr Mat Mat Min Mat Gar Mat Fac Gar Fac Gar Fac Was Fac Gar Fac Ext Cet Arc Hub Gar Fac Gar Fac Gar Res Peak Influence 1577 | 5 157 177 145 178 500 483 230 914 494 1447 811 238 390 618 846 533 861 650 1027 1577 914 1483 896 855 546 Initial 827 | . 3 1 34 56 113 243 217 111 479 283 759 222 9 110 324 414 123 344 227 718 827 428 778 151 480 Average 438 | 1 93 81 37 107 345 292 118 617 153 1085 739 146 165 390 299 149 478 583 401 1245 583 998 615 611 322 Maximum Alert Level 4 | . . . . . 2 2 1 3 2 4 3 1 1 2 3 2 3 2 3 4 3 4 3 3 2 Low Security (%) 37 | 100 100 100 100 100 15 21 88 12 69 . . 34 48 9 56 82 9 . 14 . 25 . 11 3 25 Level 1 21 | . . . . . 42 55 11 7 28 7 . 65 51 46 15 7 15 3 59 . . . 19 21 30 Level 2 16 | . . . . . 41 23 . 26 2 19 22 . . 43 12 9 61 96 3 . 23 16 6 28 44 Level 3 15 | . . . . . . . . 52 . 12 77 . . . 16 . 13 . 23 30 50 46 62 46 . Level 4 9 | . . . . . . . . . . 60 . . . . . . . . . 69 . 36 . . . Level 5 . | . . . . . . . . . . . . . . . . . . . . . . . . . . High Security . | . . . . . . . . . . . . . . . . . . . . . . . . . . Max Security . | . . . . . . . . . . . . . . . . . . . . . . . . . . Squads Dispatched 63 | . . 1 . 4 . 2 3 . 8 . 1 . 8 . 9 5 1 . 11 . 2 . 3 . 5 Investigation 7 | . . . . . . . . . . . . . 1 . 2 2 1 . 1 . . . . . . Extermination 17 | . . . . . . . 2 . 3 . 1 . 3 . 3 . . . 1 . . . 1 . 3 Reinforcement 18 | . . 1 . . . 2 1 . 2 . . . 2 . 1 3 . . 2 . 1 . 1 . 2 Assault 3 | . . . . . . . . . . . . . . . 2 . . . . . . . 1 . . Garrison 18 | . . . . 4 . . . . 3 . . . 2 . 1 . . . 7 . 1 . . . . Intercept . | . . . . . . . . . . . . . . . . . . . . . . . . . . Construction Impeded 2 | . . . . . . . . . . . . . 1 . 1 . . . . . . . . . . Haulers Reinforced 4 | . . . . . . . . . 1 . . . . . . . . . 2 . 1 . . . . Stealth | -11 -10 -9 -9 -8 -8 -8 -7 -7 -7 -7 -6 -6 -6 -6 -5 -5 -5 -5 -5 -5 -4 -4 -4 -4 -3 --------- Run | Scr Mat Mat Min Mat Gar Mat Fac Gar Fac Gar Fac Was Fac Gar Fac Ext Cet Arc Hub Gar Fac Gar Fac Gar Res Distress Signals 32 | . 1 4 . . . 3 1 . 3 . . . 1 1 7 2 1 . 2 . . . 3 . 3 Communications Jammed . | . . . . . . . . . . . . . . . . . . . . . . . . . . Distress Signals . | . . . . . . . . . . . . . . . . . . . . . . . . . . Times Spotted 783 | . 7 36 12 15 12 43 28 47 40 43 6 5 29 43 61 43 26 26 37 51 22 38 21 46 46 Peak Tracking Total 10 | . 4 5 3 5 4 6 4 6 4 6 3 2 3 6 7 6 9 2 9 6 5 5 9 6 10 Tactical Retreats 69 | . . 1 2 . 1 1 2 12 . 2 1 . 3 10 3 2 . . 2 9 2 2 . 6 8 Traps | -11 -10 -9 -9 -8 -8 -8 -7 -7 -7 -7 -6 -6 -6 -6 -5 -5 -5 -5 -5 -5 -4 -4 -4 -4 -3 ------- Run | Scr Mat Mat Min Mat Gar Mat Fac Gar Fac Gar Fac Was Fac Gar Fac Ext Cet Arc Hub Gar Fac Gar Fac Gar Res Traps Triggered 55 | . 6 1 . . 6 2 1 9 2 5 2 . 2 3 . 2 . . . 1 . 3 . 9 1 Indirectly 2 | . . . . . . . . . . . . . . . . 2 . . . . . . . . . Trap Hack Attempts . | . . . . . . . . . . . . . . . . . . . . . . . . . . Triggered . | . . . . . . . . . . . . . . . . . . . . . . . . . . Disarmed . | . . . . . . . . . . . . . . . . . . . . . . . . . . Reprogrammed . | . . . . . . . . . . . . . . . . . . . . . . . . . . Reused . | . . . . . . . . . . . . . . . . . . . . . . . . . . Traps Extracted . | . . . . . . . . . . . . . . . . . . . . . . . . . . Installed . | . . . . . . . . . . . . . . . . . . . . . . . . . . Triggered 6 | . . . . . . . . . . . . . . 1 . 4 . . . . . 1 . . . Machines | -11 -10 -9 -9 -8 -8 -8 -7 -7 -7 -7 -6 -6 -6 -6 -5 -5 -5 -5 -5 -5 -4 -4 -4 -4 -3 ---------- Run | Scr Mat Mat Min Mat Gar Mat Fac Gar Fac Gar Fac Was Fac Gar Fac Ext Cet Arc Hub Gar Fac Gar Fac Gar Res Machines Disabled 123 | . . 1 2 2 2 2 5 5 7 8 . . 19 6 2 7 . 4 7 6 24 8 . 5 1 Max in Single Turn 21 | . . 1 1 1 1 1 4 1 . 2 . . 11 1 2 2 . 1 2 2 21 2 . 1 1 Garrison Access 2 | . . . . . . . . . . . . . 1 . 1 . . . . . . . . . . Garrison Relay 26 | . . . . . 2 . . 4 . 4 . . . 4 . . . . . 5 . 3 . 4 . Phase Generator 2 | . . . . . . . . . . 1 . . . . . . . . . . . 1 . . . Network Hub 2 | . . . . . . . . . . . . . . . . . . . 2 . . . . . . Energy Cycler 1 | . . . . . . . . . . . . . . . . 1 . . . . . . . . . Machines Sabotaged . | . . . . . . . . . . . . . . . . . . . . . . . . . . Garrisons Compromised . | . . . . . . . . . . . . . . . . . . . . . . . . . . Overloaded Fab Kills . | . . . . . . . . . . . . . . . . . . . . . . . . . . Fab Network Shutdowns . | . . . . . . . . . . . . . . . . . . . . . . . . . . Hacking | -11 -10 -9 -9 -8 -8 -8 -7 -7 -7 -7 -6 -6 -6 -6 -5 -5 -5 -5 -5 -5 -4 -4 -4 -4 -3 --------- Run | Scr Mat Mat Min Mat Gar Mat Fac Gar Fac Gar Fac Was Fac Gar Fac Ext Cet Arc Hub Gar Fac Gar Fac Gar Res Machines Accessed 94 | . 1 5 . 1 . 12 10 . 9 . 5 . 6 . 13 11 4 . 8 . 3 . 4 . 2 Terminals 52 | . . 4 . . . 8 4 . 3 . 2 . 1 . 7 11 4 . 6 . 1 . 1 . . Fabricators 8 | . . . . . . . 3 . 1 . 1 . 1 . 1 . . . . . . . . . 1 Repair Stations 11 | . 1 1 . . . 1 . . 2 . . . 2 . 3 . . . . . 1 . . . . Recycling Units 4 | . . . . . . 1 1 . . . . . . . . . . . . . . . 1 . 1 Scanalyzers 6 | . . . . . . 2 1 . 1 . 1 . . . 1 . . . . . . . . . . Garrison Access 13 | . . . . 1 . . 1 . 2 . 1 . 2 . 1 . . . 2 . 1 . 2 . . Total Hacks 335 | . 2 15 . 1 . 40 29 . 21 . 12 . 10 . 60 61 17 . 21 . 15 . 29 . 2 Successful 181 | . . 9 . 1 . 24 16 . 11 . 8 . 4 . 35 32 5 . 11 . 10 . 15 . . Failed 154 | . 2 6 . . . 16 13 . 10 . 4 . 6 . 25 29 12 . 10 . 5 . 14 . 2 Catastrophic 30 | . . 1 . . . 2 1 . 1 . 1 . 3 . 5 4 3 . 5 . 2 . . . 2 Database Lockouts . | . . . . . . . . . . . . . . . . . . . . . . . . . . Manual 152 | . . 8 . . . 9 10 . 7 . 5 . 4 . 21 42 8 . 13 . 5 . 20 . . Terminals 208 | . . 13 . . . 24 9 . 8 . 6 . 1 . 26 61 17 . 14 . 9 . 20 . . Fabricators 19 | . . . . . . . 9 . 2 . 2 . 3 . 2 . . . . . . . . . 1 Repair Stations 27 | . 2 2 . . . 4 . . 4 . . . 3 . 8 . . . . . 4 . . . . Recycling Units 9 | . . . . . . 3 3 . . . . . . . . . . . . . . . 2 . 1 Scanalyzers 35 | . . . . . . 9 1 . 4 . 3 . . . 18 . . . . . . . . . . Garrison Access 37 | . . . . 1 . . 7 . 3 . 1 . 3 . 6 . . . 7 . 2 . 7 . . Terminal Hacks 55 | . . 4 . . . 11 3 . 1 . 1 . . . 5 16 1 . 3 . 4 . 6 . . Record 1 | . . . . . . . . . . . . . . . . . 1 . . . . . . . . Part Schematic 1 | . . . . . . . . . . . . . . . . 1 . . . . . . . . . Robot Analysis 4 | . . 1 . . . . . . . . . . . . . 3 . . . . . . . . . Prototype ID Bank 3 | . . . . . . 2 . . . . . . . . . . . . . . . . 1 . . Open Door 5 | . . . . . . . . . . . . . . . 1 4 . . . . . . . . . Branch Access Points 3 | . . . . . . 2 . . . . . . . . 1 . . . . . . . . . . Emergency Access Points 2 | . . . . . . . 1 . . . . . . . . . . . . . . . 1 . . Terminal Index 1 | . . . . . . . . . . . . . . . . 1 . . . . . . . . . Scanalyzer Index 2 | . . . . . . 1 . . . . . . . . . . . . . . . . 1 . . Unreport Threat 10 | . . 1 . . . 2 1 . 1 . . . . . 1 . . . 2 . 1 . 1 . . Locate Traps 6 | . . 1 . . . 1 1 . . . 1 . . . 1 1 . . . . . . . . . Recall Investigation 2 | . . . . . . . . . . . . . . . . 1 . . . . 1 . . . . Recall Extermination 1 | . . . . . . . . . . . . . . . . . . . . . 1 . . . . Hauler Manifests 1 | . . . . . . 1 . . . . . . . . . . . . . . . . . . . Registered Components 1 | . . . . . . 1 . . . . . . . . . . . . . . . . . . . Registered Prototypes 2 | . . . . . . . . . . . . . . . . . . . . . 1 . 1 . . Zone Layout 10 | . . 1 . . . 1 . . . . . . . . 1 5 . . 1 . . . 1 . . Fabricator Hacks 10 | . . . . . . . 5 . 1 . 2 . 1 . 1 . . . . . . . . . . Load Schematic 7 | . . . . . . . 3 . 1 . 1 . 1 . 1 . . . . . . . . . . Build 3 | . . . . . . . 2 . . . 1 . . . . . . . . . . . . . . Repair Station Hacks 14 | . . 2 . . . 3 . . 2 . . . . . 4 . . . . . 3 . . . . Scan Component 8 | . . 1 . . . 2 . . 1 . . . . . 2 . . . . . 2 . . . . Repair 6 | . . 1 . . . 1 . . 1 . . . . . 2 . . . . . 1 . . . . Recycling Unit Hacks 2 | . . . . . . 2 . . . . . . . . . . . . . . . . . . . Process 1 | . . . . . . 1 . . . . . . . . . . . . . . . . . . . Retrieve Matter 1 | . . . . . . 1 . . . . . . . . . . . . . . . . . . . Scanalyzer 30 | . . . . . . 8 . . 2 . 3 . . . 17 . . . . . . . . . . Insert Component 16 | . . . . . . 5 . . 1 . 1 . . . 9 . . . . . . . . . . Analyze 14 | . . . . . . 3 . . 1 . 2 . . . 8 . . . . . . . . . . Garrison Access Hacks 12 | . . . . 1 . . 2 . 2 . . . 2 . 1 . . . 2 . 1 . 1 . . Unlock Access 9 | . . . . 1 . . 1 . 2 . . . 1 . . . . . 2 . 1 . 1 . . Seal Access 2 | . . . . . . . . . . . . . 1 . 1 . . . . . . . . . . Coupler Status 1 | . . . . . . . 1 . . . . . . . . . . . . . . . . . . Unauthorized Hacks 58 | . . 3 . . . . 6 . 3 . 2 . 1 . 7 16 4 . 6 . 2 . 8 . . Terminals 41 | . . 3 . . . . 1 . 2 . 2 . . . 5 16 4 . 4 . 1 . 3 . . Track 11 | . . 3 . . . . . . . . . . . . 1 5 1 . 1 . . . . . . Assimilate 1 | . . . . . . . . . . . . . . . . . . . . . . . 1 . . Botnet 15 | . . . . . . . 1 . 2 . 1 . . . 2 5 1 . 1 . 1 . 1 . . Disrupt 8 | . . . . . . . . . . . . . . . 1 5 1 . 1 . . . . . . Operators 6 | . . . . . . . . . . . 1 . . . 1 1 1 . 1 . . . 1 . . Fabricators . | . . . . . . . . . . . . . . . . . . . . . . . . . . Repair Stations 1 | . . . . . . . . . . . . . 1 . . . . . . . . . . . . Mechanics 1 | . . . . . . . . . . . . . 1 . . . . . . . . . . . . Recycling Units 4 | . . . . . . . 3 . . . . . . . . . . . . . . . 1 . . Monitor 1 | . . . . . . . 1 . . . . . . . . . . . . . . . . . . Reject 1 | . . . . . . . 1 . . . . . . . . . . . . . . . . . . Recyclers 2 | . . . . . . . 1 . . . . . . . . . . . . . . . 1 . . Scanalyzers . | . . . . . . . . . . . . . . . . . . . . . . . . . . Garrison Access 12 | . . . . . . . 2 . 1 . . . . . 2 . . . 2 . 1 . 4 . . Broadcast 4 | . . . . . . . 1 . . . . . . . 1 . . . 1 . . . 1 . . Reprogram 5 | . . . . . . . . . . . . . . . 1 . . . 1 . 1 . 2 . . Intercept 2 | . . . . . . . 1 . 1 . . . . . . . . . . . . . . . . Watchers 1 | . . . . . . . . . . . . . . . . . . . . . . . 1 . . Data Cores Recovered 1 | . . . . . . . . . . . . . . . . . . . 1 . . . . . . Used 1 | . . . . . . . . . . . . . . . . . . . 1 . . . . . . Hacking Detections 84 | . 1 4 . 1 . 11 8 . 8 . 4 . 6 . 12 10 4 . 8 . 2 . 3 . 2 Full Trace Events 7 | . . . . . . . . . . . . . 1 . 2 2 1 . 1 . . . . . . Feedback Events 1 | . . . . . . . . . . . . . . . . . . . 1 . . . . . . Hackware Fried 1 | . . . . . . . . . . . . . . . . . . . 1 . . . . . . Feedback Blocked . | . . . . . . . . . . . . . . . . . . . . . . . . . . Robot Schematics Acquired . | . . . . . . . . . . . . . . . . . . . . . . . . . . Robots Built . | . . . . . . . . . . . . . . . . . . . . . . . . . . Matter . | . . . . . . . . . . . . . . . . . . . . . . . . . . Time . | . . . . . . . . . . . . . . . . . . . . . . . . . . Total Robot Build Rating . | . . . . . . . . . . . . . . . . . . . . . . . . . . Part Schematics Acquired 13 | . . . . . . 3 . . 1 . 1 . . . 7 1 . . . . . . . . . Parts Built 6 | . . . . . . . 4 . . . 2 . . . . . . . . . . . . . . Matter 504 | . . . . . . . 358 . . . 146 . . . . . . . . . . . . . . Time 204 | . . . . . . . 131 . . . 73 . . . . . . . . . . . . . . Total Part Build Rating 24 | . . . . . . . 18 . . . 6 . . . . . . . . . . . . . . Parts Repaired 5 | . . 1 . . . 1 . . 1 . . . . . 2 . . . . . . . . . . Time 232 | . . 32 . . . 44 . . 19 . . . . . 75 . . . . . 62 . . . . Parts Recycled . | . . . . . . . . . . . . . . . . . . . . . . . . . . Recycled Matter . | . . . . . . . . . . . . . . . . . . . . . . . . . . Retrieved Matter . | . . . . . . . . . . . . . . . . . . . . . . . . . . Retrieved Components . | . . . . . . . . . . . . . . . . . . . . . . . . . . Parts Scanalyzed 13 | . . . . . . 3 . . 1 . 1 . . . 8 . . . . . . . . . . Part Schematics Acquired 12 | . . . . . . 3 . . 1 . 1 . . . 7 . . . . . . . . . . Parts Damaged 1 | . . . . . . . . . . . . . . . 1 . . . . . . . . . . Bothacking | -11 -10 -9 -9 -8 -8 -8 -7 -7 -7 -7 -6 -6 -6 -6 -5 -5 -5 -5 -5 -5 -4 -4 -4 -4 -3 ------------ Run | Scr Mat Mat Min Mat Gar Mat Fac Gar Fac Gar Fac Was Fac Gar Fac Ext Cet Arc Hub Gar Fac Gar Fac Gar Res Used RIF Installer 7 | . . . . . 1 . . 1 . 1 . . . 1 . . . . . 1 . 1 . 1 . Hotswap 1 | . . . . . . . . . . . . . . . . . . . . 1 . . . . . Command Fork 1 | . . . . . . . . . . . . . . . . . . . . . . 1 . . . Threat Obfuscator 1 | . . . . . . . . . . . . . . . . . . . . . . . . 1 . Watcher Feeds 1 | . . . . . . . . . . 1 . . . . . . . . . . . . . . . Structural Interface 1 | . . . . . . . . 1 . . . . . . . . . . . . . . . . . Autooverride 1 | . . . . . . . . . . . . . . 1 . . . . . . . . . . . Robots Hacked 123 | . . . . . . . 4 7 9 4 6 6 6 14 14 3 2 . 1 5 15 7 10 1 9 Non-combat 42 | . . . . . . . 4 . 3 . 4 . 4 . 6 3 . . 1 . 7 . 5 . 5 Combat 81 | . . . . . . . . 7 6 4 2 6 2 14 8 . 2 . . 5 8 7 5 1 4 Autooverrided 10 | . . . . . . . . . . . . . . 3 1 . . . . 2 1 . 1 . 2 Robot Hacks Applied 163 | . . . . . . . 7 8 16 4 7 6 14 11 16 10 2 . 1 3 24 7 14 1 12 parse_system 5 | . . . . . . . . . . . . . 1 . . . 2 . . . 1 . 1 . . no_distress 13 | . . . . . . . 1 . 3 . . . 2 . 2 . . . 1 . 2 . 2 . . generate_echo 3 | . . . . . . . . . 1 . . . . . 1 . . . . . . . . . 1 find_chute 5 | . . . . . . . 1 . . . 1 . . . 2 . . . . . 1 . . . . deconstruct_machine 1 | . . . . . . . . . . . . . . . . . . . . . . . . . 1 map_walls 4 | . . . . . . . . . . . . . . . 1 1 . . . . 1 . . . 1 find_fabricator 4 | . . . . . . . . . 1 . 1 . 1 . . . . . . . 1 . . . . drop_inventory 4 | . . . . . . . . . . . . . 1 . 1 . . . . . 1 . . . 1 recall_reinforcements 1 | . . . . . . . . . . . . . . . . . . . . . 1 . . . . find_recycling 5 | . . . . . . . 1 . . . 1 . . . 1 . . . . . 1 . 1 . . ignore_parts 1 | . . . . . . . 1 . . . . . . . . . . . . . . . . . . release_backups 1 | . . . . . . . . . . . . . 1 . . . . . . . . . . . . purge_threat 23 | . . . . . . . 1 . 3 . . . 2 . . 4 . . . . 6 . 4 . 3 disarm_traps 2 | . . . . . . . 1 . . . . . 1 . . . . . . . . . . . . reprogram_traps 4 | . . . . . . . . . 1 . . . . . . 2 . . . . . . 1 . . block_reporting 2 | . . . . . . . . . . . . . . . . 1 . . . . 1 . . . . map_route 2 | . . . . . . . . . . . . . . . 1 . . . . . . . . . 1 relay_feed 2 | . . . . . . . . . . . . . 1 . . . . . . . . . 1 . . ignore_targets 6 | . . . . . . . . . . . . 6 . . . . . . . . . . . . . find_shortcuts 1 | . . . . . . . . . . . . . . 1 . . . . . . . . . . . find_garrison 1 | . . . . . . . . . 1 . . . . . . . . . . . . . . . . link_fov 1 | . . . . . . . . . . . . . . . . . . . . . . . . . 1 scatter_targeting 4 | . . . . . . . . . 1 . . . . 1 . . . . . . 1 . . . 1 link_complan 1 | . . . . . . . . 1 . . . . . . . . . . . . . . . . . spike_heat 1 | . . . . . . . . 1 . . . . . . . . . . . . . . . . . reboot_system 2 | . . . . . . . . . . . . . . . . . . . . . . 1 1 . . go_dormant 1 | . . . . . . . . 1 . . . . . . . . . . . . . . . . . overwrite_iff 23 | . . . . . . . . 5 2 1 1 . 1 6 3 . . . . . 2 2 . . . streamctrl_high 3 | . . . . . . . . . 1 1 1 . . . . . . . . . . . . . . formatsys_low 8 | . . . . . . . 1 . . . 1 . 2 . . 2 . . . . 1 . . . 1 formatsys_high 29 | . . . . . . . . . 2 2 1 . 1 3 4 . . . . 3 4 4 3 1 1 Relay Couplers Released 105 | . . . . . 9 . . 18 . 15 . . 3 14 . . . . . 19 . 11 . 16 . Machine Destruction 102 | . . . . . 9 . . 18 . 15 . . . 14 . . . . . 19 . 11 . 16 . Programmers 3 | . . . . . . . . . . . . . 3 . . . . . . . . . . . . Attached 46 | . . . . . . . 2 5 3 2 2 1 2 6 4 2 . . . 3 2 2 1 6 3 Robots Rewired 31 | . . . . . . . 1 1 . 7 . . . . . 15 . . . 6 . . 1 . . Allies Hacked 1 | . . . . . . . . . . . . . . . . . . . . . . . . . 1 Hacks Repelled . | . . . . . . . . . . . . . . . . . . . . . . . . . . Allies | -11 -10 -9 -9 -8 -8 -8 -7 -7 -7 -7 -6 -6 -6 -6 -5 -5 -5 -5 -5 -5 -4 -4 -4 -4 -3 -------- Run | Scr Mat Mat Min Mat Gar Mat Fac Gar Fac Gar Fac Was Fac Gar Fac Ext Cet Arc Hub Gar Fac Gar Fac Gar Res Total Allies 118 | . . . . . . . 2 6 5 11 3 . 4 12 9 21 5 . 2 11 8 6 8 1 4 Largest Group 10 | . . . . . . . 1 2 1 5 2 1 2 2 2 10 6 5 4 4 3 6 3 2 1 Highest-Rated Group 626 | . . . . . . . 26 24 29 114 58 29 54 76 58 331 626 470 282 164 152 290 152 108 56 Highest-Rated Ally 156 | . . . . . . . 26 16 29 32 29 29 29 47 29 156 156 94 94 41 58 49 60 54 56 Total Orders 4 | . . . . . . . . . . . . . 1 . . 3 . . . . . . . . . STAY 1 | . . . . . . . . . . . . . . . . 1 . . . . . . . . . FOLLOW 2 | . . . . . . . . . . . . . . . . 2 . . . . . . . . . AID 1 | . . . . . . . . . . . . . 1 . . . . . . . . . . . . Ally Attacks 700 | . . . . . . . 9 26 23 79 8 22 1 41 34 137 58 36 79 45 21 51 18 9 3 Total Damage 17868 | . . . . . . . 123 333 1037 1737 133 416 20 554 523 3136 2168 1212 2636 625 816 1592 413 324 70 Kills 104 | . . . . . . . 1 3 6 15 . 1 1 4 . 19 14 2 12 6 6 8 2 4 . Allies Corrupted 6 | . . . . . . . . . 1 . . . 1 . 2 1 . . . . . . 1 . . Allies Melted . | . . . . . . . . . . . . . . . . . . . . . . . . . . Intel | -11 -10 -9 -9 -8 -8 -8 -7 -7 -7 -7 -6 -6 -6 -6 -5 -5 -5 -5 -5 -5 -4 -4 -4 -4 -3 ------- Run | Scr Mat Mat Min Mat Gar Mat Fac Gar Fac Gar Fac Was Fac Gar Fac Ext Cet Arc Hub Gar Fac Gar Fac Gar Res Robot Analysis Total 4 | . . 1 . . . . . . . . . . . . . 3 . . . . . . . . . Derelict Logs Recovered 1 | . . . 1 . . . . . . . . . . . . . . . . . . . . . . Drone Launches . | . . . . . . . . . . . . . . . . . . . . . . . . . . Drone Recoveries . | . . . . . . . . . . . . . . . . . . . . . . . . . . Exploration | -11 -10 -9 -9 -8 -8 -8 -7 -7 -7 -7 -6 -6 -6 -6 -5 -5 -5 -5 -5 -5 -4 -4 -4 -4 -3 ------------- Run | Scr Mat Mat Min Mat Gar Mat Fac Gar Fac Gar Fac Was Fac Gar Fac Ext Cet Arc Hub Gar Fac Gar Fac Gar Res Turns Passed 31766 | 59 537 1482 1094 454 1026 1954 1798 1553 1387 1977 518 608 1343 2121 2723 2036 475 397 1161 2101 472 692 639 2221 938 Spaces Moved 17051 | 45 270 621 542 199 497 782 1317 935 780 960 271 237 585 1056 1289 935 185 161 479 1056 435 715 623 1483 593 Core 56 | 2 . . . . . . . . . . . . . . . . . . . . . . . . 54 Treads 9093 | . 213 621 542 199 338 780 41 7 16 747 . 207 585 802 955 935 185 161 479 892 . . . 334 54 Legs 237 | . . . . . 159 2 . . . . . . . 76 . . . . . . . . . . . Wheels 3016 | 43 57 . . . . . 634 928 328 213 271 30 . 178 334 . . . . . . . . . . Hover 4649 | . . . . . . . 642 . 436 . . . . . . . . . . 164 435 715 623 1149 485 Flight . | . . . . . . . . . . . . . . . . . . . . . . . . . . Fastest Speed 40 | 50 80 180 160 160 150 160 40 100 102 110 120 120 160 120 130 165 160 160 163 52 52 52 50 50 48 Average Speed 137 | 78 157 180 177 161 165 190 100 117 114 167 126 156 160 165 161 165 160 162 163 146 52 52 68 120 103 Slowest Speed 500 | 80 180 200 180 180 240 230 190 200 250 240 130 180 160 300 185 165 180 163 180 165 54 125 130 340 500 Overloaded Moves . | . . . . . . . . . . . . . . . . . . . . . . . . . . Propulsion Burnouts . | . . . . . . . . . . . . . . . . . . . . . . . . . . Robots Hopped . | . . . . . . . . . . . . . . . . . . . . . . . . . . Cave-ins Triggered 2 | . . . . . 1 1 . . . . . . . . . . . . . . . . . . . Exploration Rate (%) 56 | 4 61 49 99 20 53 74 29 98 23 99 6 99 14 98 30 84 61 79 56 96 8 97 14 99 12 Regions Visited 25 Branch Regions 5 Pre-discovered Areas 1 | . . . 1 . . . . . . . . . . . . . . . . . . . . . . Known Exits Taken 8 | . . . . 1 . . 1 . 1 . . . 1 . 1 . . . 1 . 1 . 1 . . Unknown Exits Taken 8 | 1 1 1 1 . . 1 . . . . . . . . . 1 1 1 . . . . . . . Scrap Searched 3 | . . . 3 . . . . . . . . . . . . . . . . . . . . . . Spaces Dug 85 | . . . . . 13 5 2 30 1 1 . . . . 7 . 17 . 4 2 . . 2 . 1 Terrain Destroyed 1189 | . . . 22 22 29 27 36 84 5 121 2 6 124 52 34 30 26 22 332 12 92 76 8 11 16 Melee 13 | . . . . . . 5 2 . 1 1 . . . . . . . . 3 . . . 1 . . Projectile 147 | . . . . . . 10 . . . 3 2 6 6 1 23 7 1 22 15 11 6 . 7 11 16 AOE 1029 | . . . 22 22 29 12 34 84 4 117 . . 118 51 11 23 25 . 314 1 86 76 . . . Terrain Rammed . | . . . . . . . . . . . . . . . . . . . . . . . . . . Walls Destroyed . | . . . . . . . . . . . . . . . . . . . . . . . . . . Machines Disabled . | . . . . . . . . . . . . . . . . . . . . . . . . . . Actions | -11 -10 -9 -9 -8 -8 -8 -7 -7 -7 -7 -6 -6 -6 -6 -5 -5 -5 -5 -5 -5 -4 -4 -4 -4 -3 --------- Run | Scr Mat Mat Min Mat Gar Mat Fac Gar Fac Gar Fac Was Fac Gar Fac Ext Cet Arc Hub Gar Fac Gar Fac Gar Res Total 22816 | 61 340 837 599 275 653 1101 1698 1248 1112 1202 418 380 840 1309 1728 1305 327 237 669 1402 620 941 806 1874 834 Wait 1418 | . 1 87 8 10 14 127 169 43 96 36 82 . 92 34 148 39 78 5 13 18 83 70 52 67 46 Move 17028 | 44 269 620 541 198 496 781 1316 934 780 959 271 236 584 1055 1288 934 184 160 478 1055 434 714 622 1482 593 Hop . | . . . . . . . . . . . . . . . . . . . . . . . . . . Pick Up 354 | 8 17 13 2 13 22 21 26 24 17 24 8 9 6 24 26 6 7 10 5 18 11 15 5 11 6 Fast Attach 222 | 7 . 2 1 2 12 8 24 9 6 4 3 3 3 17 19 1 6 3 9 8 4 4 13 20 34 Attach 180 | . . 2 3 8 10 8 18 7 9 8 4 4 9 18 6 7 4 4 2 13 2 4 9 8 13 Detach 32 | . . . . 1 1 . 3 2 2 1 . 1 1 4 1 1 1 . 2 1 . . 3 2 5 Swap 358 | . 10 10 3 8 9 17 23 22 30 13 17 3 15 14 32 19 11 5 10 16 16 16 13 13 13 Drop 483 | . 17 20 . 1 30 30 46 26 21 26 8 17 5 31 54 8 13 16 11 20 10 18 13 16 26 Fire 1750 | 2 26 79 34 26 15 104 12 86 77 97 21 107 92 68 121 86 13 34 115 115 59 71 72 126 92 Melee 403 | . . . 7 8 24 5 61 23 48 19 4 . 33 38 32 9 10 . 24 32 . 12 3 11 . Ram 3 | . . . . . . . . . . . . . . . . . . . . . . . . 1 2 Kick . | . . . . . . . . . . . . . . . . . . . . . . . . . . Crush 9 | . . 4 . . . . . . . . . . . . . 1 . . . . . . . . 4 Escape Stasis 271 | . . . . . 20 . . 72 26 14 . . . 6 . . . . . . . 16 . 117 . Rewire 305 | . . . . . . . . . . 1 . . . . 1 194 . . . 106 1 1 1 . . Trap . | . . . . . . . . . . . . . . . . . . . . . . . . . . Miscellaneous . | . . . . . . . . . . . . . . . . . . . . . . . . . . Route ------- -11/Scrapyard -10/Materials (discovered 2 exits: *Mat / [*Min]) -9/Materials (discovered 3 exits: *Mat x2 / [*Min]) -9/Mines (discovered 2 exits: *Mat x2) -8/Materials -8/Garrison -8/Materials (discovered 2 exits: *Fac x2) -7/Factory (discovered 3 exits: *Fac / [*Low] / Gar) -7/Garrison (discovered 3 exits: *Fac x3) -7/Factory (discovered 3 exits: *Fac / Gar / Gar) -7/Garrison (discovered 3 exits: *Fac x3) -6/Factory -6/Waste -6/Factory (discovered 2 exits: *Fac / Gar) -6/Garrison (discovered 3 exits: *Fac x3) -5/Factory (discovered 6 exits: *Fac x2 / *Upp x2 / *Ext x2) -5/Extension (discovered 3 exits: *Fac x2 / *Cet) -5/Cetus -5/Archives (discovered 3 exits: *Fac / *Hub x2) -5/Hub_04(d) (discovered 4 exits: *Fac x2 / Gar / Gar) -5/Garrison (discovered 3 exits: *Fac x3) -4/Factory -4/Garrison (discovered 3 exits: *Fac x3) -4/Factory (discovered 2 exits: *Res / Gar) -4/Garrison (discovered 3 exits: *Res x3) -3/Research History --------- Turn | Location | Event 9 | -11/Scrapyard | Discovered new exit (range 15) 60 | -11/Scrapyard | Entered Materials 297 | -10/Materials | Discovered new exit (range 13) 301 | -10/Materials | Build established: Mutant 390 | -10/Materials | Discovered new exit (range 9) 597 | -10/Materials | Entered another Materials area 597 | -9/Materials | Evolved 2 slots: Utility x2 830 | -9/Materials | Discovered new exit (range 16) 1244 | -9/Materials | Repaired Imp. Treads 1390 | -9/Materials | Discovered new exit (range 14) 1554 | -9/Materials | Destroyed 7 combat bots 1808 | -9/Materials | Discovered new exit (range 7) 2079 | -9/Materials | Entered Mines 2114 | -9/Mines | Discovered new exit (range 10) 2583 | -9/Mines | A weapon hastily lodged in a ceiling crevice suddenly fell to the ground 2733 | -9/Mines | Learned location of Recycling (-9) 3156 | -9/Mines | Discovered new exit (range 6) 3173 | -9/Mines | Entered Materials 3173 | -8/Materials | Evolved 2 slots: Propulsion x1, Utility x1 3254 | -8/Materials | Garrison activated, responded to threat 3334 | -8/Materials | Lost 5 parts (1p1u3w) 3434 | -8/Materials | Identified exit to Garrison 3558 | -8/Materials | Build established: Hauler-Mutant 3581 | -8/Materials | Garrison activated, responded to threat 3627 | -8/Materials | Entered Garrison 3635 | -8/Garrison | Installed Relay Interface Framework 3768 | -8/Garrison | Triggered checkpoint 3781 | -8/Garrison | Garrison Relay disabled 3926 | -8/Garrison | Spotted B-75 Beast 3974 | -8/Garrison | Crushed by falling debris 3974 | -8/Garrison | System corruption reached 10% 3992 | -8/Garrison | Core integrity fell below 50% 3992 | -8/Garrison | Destroyed B-75 Beast 4005 | -8/Garrison | Lost 7 parts (3n1u3w) 4138 | -8/Garrison | Triggered checkpoint 4228 | -8/Garrison | Triggered checkpoint 4253 | -8/Garrison | Garrison Relay disabled 4633 | -8/Garrison | Discovered new exit (range 12) 4653 | -8/Garrison | Entered Materials 5301 | -8/Materials | Repaired Spear 6382 | -8/Materials | Discovered new exit (range 7) 6525 | -8/Materials | Crushed by falling debris 6525 | -8/Materials | Core integrity fell below 20% 6567 | -8/Materials | Discovered new exit (range 10) 6607 | -8/Materials | Entered Factory 6607 | -7/Factory | Evolved 2 slots: Propulsion x2 6923 | -7/Factory | Build established: Mutant 6944 | -7/Factory | Fabricated Hvy. Pick (x2) 6993 | -7/Factory | Discovered new exit (range 15) 7135 | -7/Factory | Discovered new exit (range 16) 7330 | -7/Factory | Lost 3 parts (2n1u) 7538 | -7/Factory | Lost 9 parts (1p5n3u) 8052 | -7/Factory | Identified exit to Garrison 8235 | -7/Factory | Fabricated Gravmag System? 8405 | -7/Factory | Entered Garrison 8501 | -7/Garrison | Triggered checkpoint 8554 | -7/Garrison | Garrison Relay disabled 8683 | -7/Garrison | Triggered checkpoint 8739 | -7/Garrison | Triggered checkpoint 8742 | -7/Garrison | Triggered checkpoint 8804 | -7/Garrison | Build established: Scavenger-Mutant 8975 | -7/Garrison | Discovered new exit (range 10) 8991 | -7/Garrison | Expanded RIF knowledge: Structural Interface 9104 | -7/Garrison | Triggered checkpoint 9135 | -7/Garrison | Garrison Relay disabled 9328 | -7/Garrison | Triggered checkpoint 9339 | -7/Garrison | Garrison Relay disabled 9433 | -7/Garrison | Discovered new exit (range 13) 9502 | -7/Garrison | Build established: Bothacker-Mutant 9580 | -7/Garrison | Triggered checkpoint 9632 | -7/Garrison | Discovered new exit (range 10) 9656 | -7/Garrison | Triggered checkpoint 9682 | -7/Garrison | Core integrity fell below 50% 9913 | -7/Garrison | Garrison Relay disabled 9958 | -7/Garrison | Entered Factory 10072 | -7/Factory | Discovered new exit (range 4) 10277 | -7/Factory | Repaired Arm. Treads 10340 | -7/Factory | Garrison activated, responded to threat 10405 | -7/Factory | Identified exit to Garrison 11103 | -7/Factory | Core integrity fell below 20% 11345 | -7/Factory | Identified exit to Garrison 11345 | -7/Factory | Entered Garrison 11469 | -7/Garrison | Phase Generator disabled 11545 | -7/Garrison | Garrison Relay disabled 11566 | -7/Garrison | Triggered checkpoint 11834 | -7/Garrison | Triggered checkpoint 11868 | -7/Garrison | Triggered checkpoint 11886 | -7/Garrison | Triggered checkpoint 11974 | -7/Garrison | Triggered checkpoint 12030 | -7/Garrison | Discovered new exit (range 13) 12076 | -7/Garrison | Build established: Scavenger-Mutant 12117 | -7/Garrison | Triggered checkpoint 12161 | -7/Garrison | Garrison Relay disabled 12267 | -7/Garrison | Discovered new exit (range 10) 12298 | -7/Garrison | Expanded RIF knowledge: Patrol Navigation 12350 | -7/Garrison | Triggered checkpoint 12497 | -7/Garrison | Garrison Relay disabled 12587 | -7/Garrison | Build established: Bothacker-Mutant 12594 | -7/Garrison | Triggered checkpoint 13044 | -7/Garrison | Triggered checkpoint 13071 | -7/Garrison | Garrison Relay disabled 13106 | -7/Garrison | Discovered new exit (range 10) 13322 | -7/Garrison | Entered Factory 13322 | -6/Factory | Evolved 2 slots: Power x1, Utility x1 13727 | -6/Factory | Fabricated Adv. Weight Redist. System? 13840 | -6/Factory | Sucked down chute 13840 | -6/Factory | Entered Waste 13855 | -6/Waste | 1 allies followed down the chute 13855 | -6/Waste | Spotted C-40 Crusher 13885 | -6/Waste | Spotted C-40 Crusher 13894 | -6/Waste | Allies destroyed C-40 Crusher 13896 | -6/Waste | Spotted C-40 Crusher 13902 | -6/Waste | Spotted C-40 Crusher 13939 | -6/Waste | Spotted C-40 Crusher 13939 | -6/Waste | Spotted C-40 Crusher 13951 | -6/Waste | Destroyed C-40 Crusher 13973 | -6/Waste | Found Damper Plating 13984 | -6/Waste | Destroyed C-40 Crusher 14001 | -6/Waste | Crushed by Compactor (1 part destroyed, 1 dropped) 14073 | -6/Waste | Destroyed C-40 Crusher 14243 | -6/Waste | Destroyed C-40 Crusher 14254 | -6/Waste | Destroyed C-40 Crusher 14407 | -6/Waste | Discovered new exit (range 12) 14448 | -6/Waste | Entered Factory 15048 | -6/Factory | Discovered new exit (range 8) 15666 | -6/Factory | Garrison activated, responded to threat 15779 | -6/Factory | Identified exit to Garrison 15791 | -6/Factory | Entered Garrison 15799 | -6/Garrison | Expanded RIF knowledge: Autooverride 15908 | -6/Garrison | Triggered checkpoint 15960 | -6/Garrison | Garrison Relay disabled 16005 | -6/Garrison | Triggered checkpoint 16184 | -6/Garrison | Lost 3 parts (1n1u1w) 16216 | -6/Garrison | Discovered new exit (range 14) 16302 | -6/Garrison | Triggered checkpoint 16379 | -6/Garrison | Garrison Relay disabled 16403 | -6/Garrison | Triggered checkpoint 16486 | -6/Garrison | Triggered checkpoint 16492 | -6/Garrison | Triggered checkpoint 16529 | -6/Garrison | Core integrity fell below 50% 16559 | -6/Garrison | Lost 3 parts (1p1n1w) 16780 | -6/Garrison | Build established: Scavenger-Mutant 16945 | -6/Garrison | Discovered new exit (range 10) 16982 | -6/Garrison | Triggered checkpoint 17153 | -6/Garrison | Garrison Relay disabled 17351 | -6/Garrison | Discovered new exit (range 10) 17376 | -6/Garrison | Triggered checkpoint 17495 | -6/Garrison | Garrison Relay disabled 17576 | -6/Garrison | Triggered checkpoint 17912 | -6/Garrison | Entered Factory 17912 | -5/Factory | Evolved 2 slots: Utility x2 18444 | -5/Factory | Repaired Broken Cmb. Antigrav System 18592 | -5/Factory | Discovered new exit (range 16) 18638 | -5/Factory | Build established: Bothacker-Mutant 19018 | -5/Factory | Identified exit to Factory 19503 | -5/Factory | Identified exit to Upper Caves 19503 | -5/Factory | Identified exit to Extension 19547 | -5/Factory | Spotted B-75 Beast 19660 | -5/Factory | Build established: Scavenger-Mutant 19961 | -5/Factory | Build established: Bothacker-Mutant 20093 | -5/Factory | Garrison activated, responded to threat 20273 | -5/Factory | Repaired Hvy. Treads 20388 | -5/Factory | Build established: Scavenger-Mutant 20494 | -5/Factory | Discovered exit to Factory (range 15) 20612 | -5/Factory | First assault squad dispatched 20635 | -5/Factory | Entered Extension 21232 | -5/Extension | Rescued a captive Derelict 21232 | -5/Extension | Rescued a captive Derelict 21399 | -5/Extension | Build established: Commander-Mutant 21567 | -5/Extension | Spotted B-75 Beast 21577 | -5/Extension | Allies destroyed B-75 Beast 21589 | -5/Extension | Spotted B-75 Beast 21604 | -5/Extension | Destroyed B-75 Beast 21697 | -5/Extension | Discovered exit to Factory (range 4) 21873 | -5/Extension | Build established: Scavenger-Mutant 21931 | -5/Extension | Rescued a captive Derelict 21968 | -5/Extension | Rescued A7 22574 | -5/Extension | Energy Cycler disabled 22574 | -5/Extension | Rescued a captive Derelict 22655 | -5/Extension | Discovered exit to Factory (range 10) 22657 | -5/Extension | Discovered new exit (range 6) 22658 | -5/Extension | Disrupted transfer network 22671 | -5/Extension | Entered Cetus 22671 | -5/Cetus | Accompanied by 3 allies (A7) 22676 | -5/Cetus | Acquired a Cetus Manufacturing Module code from A7 22698 | -5/Cetus | Spotted Cetus Guard 22698 | -5/Cetus | Spotted Cetus Guard 22707 | -5/Cetus | Destroyed Cetus Guard 22707 | -5/Cetus | Spotted Cetus Guard 22708 | -5/Cetus | Allies destroyed Cetus Guard 22708 | -5/Cetus | Spotted Cetus Guard 22716 | -5/Cetus | Allies destroyed Cetus Guard 22719 | -5/Cetus | Destroyed Cetus Guard 22812 | -5/Cetus | Destroyed 9 combat bots 22854 | -5/Cetus | Started Cetus Manufacturing Module 22879 | -5/Cetus | Manufactured an Enhanced Grunt 22904 | -5/Cetus | Manufactured an Enhanced Grunt 22929 | -5/Cetus | Manufactured an Enhanced Grunt 22954 | -5/Cetus | Manufactured an Enhanced Grunt 22979 | -5/Cetus | Manufactured an Enhanced Grunt 23046 | -5/Cetus | Discovered new exit (range 15) 23103 | -5/Cetus | Destroyed A7 23104 | -5/Cetus | Extracted ID and sensor layout for unrecognized location from A7's data core 23146 | -5/Cetus | Entered Archives 23146 | -5/Archives | Accompanied by 5 allies 23315 | -5/Archives | Discovered new exit (range 14) 23364 | -5/Archives | Discovered exit to Factory (range 15) 23517 | -5/Archives | Discovered new exit (range 14) 23543 | -5/Archives | Entered Hub_04(d) 23543 | -5/Hub_04(d) | Accompanied by 3 allies 23602 | -5/Hub_04(d) | Discovered exit to Factory (range 12) 23610 | -5/Hub_04(d) | Identified exit to Garrison 23863 | -5/Hub_04(d) | Discovered exit to Factory (range 5) 23964 | -5/Hub_04(d) | Garrison activated, responded to threat 24208 | -5/Hub_04(d) | Garrison activated, responded to threat 24233 | -5/Hub_04(d) | Identified exit to Garrison 24233 | -5/Hub_04(d) | Imp. Hacking Suite fried by hacking feedback 24430 | -5/Hub_04(d) | Network Hub disabled 24432 | -5/Hub_04(d) | Spotted Lightning 24434 | -5/Hub_04(d) | Network Hub disabled 24444 | -5/Hub_04(d) | Garrison activated, responded to threat 24461 | -5/Hub_04(d) | Spotted Lightning 24474 | -5/Hub_04(d) | Spotted Lightning 24476 | -5/Hub_04(d) | Spotted Lightning 24494 | -5/Hub_04(d) | Destroyed Lightning 24509 | -5/Hub_04(d) | Spotted Lightning 24509 | -5/Hub_04(d) | Spotted Lightning 24511 | -5/Hub_04(d) | Found Prototype Device 24511 | -5/Hub_04(d) | Identified EM Dispersion Field 24515 | -5/Hub_04(d) | Found Prototype Processor 24515 | -5/Hub_04(d) | Identified Exp. Targeting Computer 24580 | -5/Hub_04(d) | Destroyed Lightning 24593 | -5/Hub_04(d) | Found Prototype Device 24593 | -5/Hub_04(d) | Identified Exp. Phase Shifter 24634 | -5/Hub_04(d) | Destroyed Lightning 24656 | -5/Hub_04(d) | Destroyed Lightning 24656 | -5/Hub_04(d) | Destroyed Lightning 24665 | -5/Hub_04(d) | Destroyed Lightning 24704 | -5/Hub_04(d) | Entered Garrison 24776 | -5/Garrison | Garrison Relay disabled 24776 | -5/Garrison | Triggered checkpoint 24890 | -5/Garrison | Triggered checkpoint 24897 | -5/Garrison | Garrison Relay disabled 25050 | -5/Garrison | Triggered checkpoint 25056 | -5/Garrison | Triggered checkpoint 25244 | -5/Garrison | Spotted B-75 Beast 25275 | -5/Garrison | Destroyed B-75 Beast 25559 | -5/Garrison | Garrison Relay disabled 25562 | -5/Garrison | Triggered checkpoint 25594 | -5/Garrison | Core integrity fell below 50% 25834 | -5/Garrison | Triggered checkpoint 25885 | -5/Garrison | Discovered exit to Factory (range 14) 26022 | -5/Garrison | Triggered checkpoint 26073 | -5/Garrison | Garrison Relay disabled 26170 | -5/Garrison | Discovered exit to Factory (range 12) 26370 | -5/Garrison | Triggered checkpoint 26383 | -5/Garrison | Build established: Bothacker-Mutant 26468 | -5/Garrison | Triggered checkpoint 26495 | -5/Garrison | Garrison Relay disabled 26550 | -5/Garrison | Discovered exit to Factory (range 12) 26577 | -5/Garrison | Expanded RIF knowledge: Hotswap 26805 | -5/Garrison | Entered Factory 26805 | -4/Factory | Evolved 2 slots: Utility x2 26873 | -4/Factory | Build established: Botlord-Mutant 27152 | -4/Factory | Garrison activated, responded to threat 27175 | -4/Factory | Identified exit to Garrison 27277 | -4/Factory | Entered Garrison 27277 | -4/Garrison | Accompanied by 2 allies 27292 | -4/Garrison | Triggered checkpoint 27336 | -4/Garrison | Garrison Relay disabled 27390 | -4/Garrison | Triggered checkpoint 27443 | -4/Garrison | Discovered new exit (range 5) 27458 | -4/Garrison | Triggered checkpoint 27483 | -4/Garrison | Garrison Relay disabled 27509 | -4/Garrison | Triggered checkpoint 27591 | -4/Garrison | Discovered new exit (range 11) 27610 | -4/Garrison | Triggered checkpoint 27663 | -4/Garrison | Garrison Relay disabled 27773 | -4/Garrison | Triggered checkpoint 27828 | -4/Garrison | Discovered new exit (range 13) 27837 | -4/Garrison | Expanded RIF knowledge: Command Fork 27864 | -4/Garrison | Triggered checkpoint 27886 | -4/Garrison | Found Quantum Capacitor 27938 | -4/Garrison | Phase Generator disabled 27969 | -4/Garrison | Entered Factory 27969 | -4/Factory | Accompanied by 2 allies 28121 | -4/Factory | Identified exit to Garrison 28219 | -4/Factory | First assault squad dispatched 28247 | -4/Factory | Discovered new exit (range 6) 28319 | -4/Factory | P-70 Sage assimilated allied Enforcer 7b 28415 | -4/Factory | Lost 8 parts (2p1n2u3w) 28608 | -4/Factory | Entered Garrison 28608 | -4/Garrison | Accompanied by 2 allies 28645 | -4/Garrison | Spotted B-86 Titan 28652 | -4/Garrison | Triggered checkpoint 28716 | -4/Garrison | Build established: Scavenger-Mutant 28728 | -4/Garrison | Triggered checkpoint 28766 | -4/Garrison | Lost 4 parts (2n2w) 28832 | -4/Garrison | Triggered checkpoint 28896 | -4/Garrison | Garrison Relay disabled 29136 | -4/Garrison | Destroyed B-86 Titan 29225 | -4/Garrison | Discovered new exit (range 14) 29312 | -4/Garrison | Triggered checkpoint 29458 | -4/Garrison | Triggered checkpoint 29482 | -4/Garrison | Garrison Relay disabled 29669 | -4/Garrison | Discovered new exit (range 5) 29683 | -4/Garrison | Expanded RIF knowledge: Threat Obfuscation 29710 | -4/Garrison | Triggered checkpoint 30000 | -4/Garrison | Garrison Relay disabled 30098 | -4/Garrison | Discovered new exit (range 8) 30121 | -4/Garrison | Triggered checkpoint 30167 | -4/Garrison | Build established: Bothacker-Mutant 30338 | -4/Garrison | Garrison Relay disabled 30739 | -4/Garrison | Build established: Botlord-Mutant 30829 | -4/Garrison | Entered Research 30829 | -3/Research | Accompanied by 1 ally 30829 | -3/Research | Evolved 2 slots: Utility x2 30885 | -3/Research | Lost 3 parts (2p1u) 31199 | -3/Research | Build established: Scavenger-Mutant 31386 | -3/Research | Lost 4 parts (2n1u1w) 31680 | -3/Research | System corruption reached 10% 31729 | -3/Research | Core integrity fell below 50% 31745 | -3/Research | Found Unknown Launcher 31745 | -3/Research | Identified Gamma Bomb Array 31754 | -3/Research | Core integrity fell below 20% 31767 | -3/Research | Lost 21 parts (4p7n5u5w) 31767 | -3/Research | Self-destructed Last Messages --------------- 31726_ Dropped Lrg. Storage Unit. 31729_ System corrupted: Matter fused (-8). 31729_ K-01 Serf collects debris. 31729_ Slug penetrates Wall. 31729_ U-05 Engineer builds a Door. 31729_ Dropped Lgt. Antimatter Reactor. 31730_ Acquired Imp. Antigrav System. 31732_ K-01 Serf collects debris. 31733_ U-05 Engineer lays Concrete. 31736_ Imp. Antigrav System destroyed. 31736_ Penetrated by Slug. 31743_ Acquired Imp. System Shield. 31745_ System corrupted: Matter fused (-6). 31745_ Acquired Unknown Launcher. 31745_ Identified Gamma Bomb Array. 31748_ G-67 Veteran suffers critical hit. 31750_ U-05 Engineer lays Concrete. 31751_ P-80 Master resets G-67 Veteran, system corruption cleaned. 31756_ K-01 Serf collects debris. 31757_ Acquired 19 matter. Map ----- +----------------------------------------------------+ | # # ?????????????????????????????????? | | # # == ?????????????????????????????????? | | #### # =! ?????????????????????????????????? | | # !# ?????????????????????????????????? | | #*!%%#########????????????????????????????????? | | [#%%=*##########???????????????????????????????? | | [!+=!%!# #???????????????????????????????? | | %=#%! =#!= #???????????????????????????????? | | #!* #!= #???????????????????????????????? | | # # #???????????????????????????????? | | # # #???????????????????????????????? | | #### % # #???????????????????????????????? | | ???# # #???????????????????????????????? | | ???# + #???????????????????????????????? | | ???# # #???????????????????????????????? | | ???# ###########??????????????????????????????? | | ##?# #= ! #??????????????????????????????? | | ### # ! #??????????????????????????????? | | + # #??????????????????????????????? | | # # #??########????????????????????? | | # + #??# !#????????????????????? | | # # #??# #????????????????????? | | # # #??# #????????????????????? | | # # #??# #????????????????????? | | # ###########??# #????????????????????? | | + #????????????# @ #????????????????????? | | # #################/###????????????????????? | | # #??????????????????????? | | # ##+##+##################################?? | | # # [ #????????# """ # #?? | | #### # %==#??????### """" # #?? | | # # [ !!########=#[* """" # """ #?? | | # #= !!#!*"[##[%#%% """ *# """ #?? | | = # # !!!/* ! [ [+ ! # """ #?? | | + # !! ##%##"##[#==[ # #?? | | [ # # ! ########## # #?? | | # # =]#????????# #?? ??#?? | | # ######/####################+######+####### | | # | | #### ^^ | | ???# ^^ * | | ???# %[ %! ] | | ???####+######+################# % ! | | ???# # #?????????# | | ???# # #??######## | | ???#"" [ # %%%" !#??# ] | | ???#"" # """" #??# | | ???#"Y # """" #??# %= | | ???#"" !#] """" #??# | | ???#"" [# % " #??# ####"" """########+## | +----------------------------------------------------+ Best States ------------- Heat Dissipation 84 Coolant Potential 80 Energy Generation 45 Energy Capacity 1000 Matter Stores 300 Matter Capacity 300 Sight Range 16 Terrain Scan Density 85 Jamming Range 8 Power Amplification 30 Additional Mass Support 9 Base Temperature (-) 200 Armor Coverage 2400 Resistance: EM 90 Propulsion Shielding 66 Utility Shielding 66 Weapon Shielding 66 Point Defense Rating 80 Melee Speed Boost 20 Phase Shifting 20 Evasion (%) 60 Targeting Accuracy 12 Melee Accuracy 12 Target Analysis 8 Core Analysis 10 Recoil Reduction 5 Salvage Targeting 2 Offensive Hacking 12 Defensive Hacking 14 Relay Coupler Types 119 Relay Coupler Value 4 Item Schematics ----------------- Aerolev Unit | -8/Materials | Scanalyzed Gravmag System | -8/Materials | Scanalyzed Spear | -8/Materials | Scanalyzed Adv. Weight Redist. System | -7/Factory | Scanalyzed Cld. Airjet | -6/Factory | Scanalyzed Imp. Coolant Injector | -5/Factory | Scanalyzed Cmb. Antigrav System | -5/Factory | Scanalyzed Cmb. Airjet | -5/Factory | Scanalyzed Hvy. Treads | -5/Factory | Scanalyzed Adv. Shield Generator | -5/Factory | Scanalyzed Imp. Remote Datajack | -5/Factory | Scanalyzed Energy Well | -5/Factory | Scanalyzed Antigrav System | -5/Extension | Hacked Robot Schematics ------------------ None Fabricated ------------ Hvy. Pick | x2 | -7/Factory | Preloaded Gravmag System | x2 | -7/Factory Adv. Weight Redist. System | x2 | -6/Factory Alien Tech Used ----------------- None Achievements -------------- Fearless Challenges ------------ None Game ------ Seed AluminumRefinerySheargun Manual? 0 Play Time 06:47:44 Cumulative 182.1 hours Start 2020.10.08 @ 14:05:59 End 2020.10.12 @ 21:34:33 Sessions 7 Manual Loads 0 Difficulty Rogue Special Mode None Game No. 81 Rogue 81 Adventurer 0 Explorer 0 Win Type - Total 4 Types 3/0/0/1/0/0/0/0/0 Lore% 48 Gallery% 77 Achievement% 58 Wizard Run 0 Options --------- ASCII 0 Keyboard 0 Movement Numpad Keybinds 0 Fullscreen 1 Font 18/SmallcapsGlow Map View 76x50 Tactical HUD 1 Map Filters NONE Filters NONE Steam 1 RUN: 5a142c27-633b-464d-87e6-2c07f5bf40e2